bitfinex/quotes_SOLUSD_20220102
["timestamp","ask_amount","ask_price","bid_price","bid_amount"]
[1641100452291,9.2665,176.38,176.3,113.43519637]
[1641100453296,10.69319368,176.38,176.3,113.43519637]
[1641100454592,1.60576346,176.36,176.3,113.43519637]
[1641100454893,8.5095,176.33,176.3,113.43519637]
[1641100455092,5.46253446,176.32,176.3,113.43519637]
[1641100455492,6.22253446,176.32,176.3,113.43519637]
[1641100455894,8.5097,176.31,176.3,113.43519637]
[1641100456296,9.2697,176.31,176.3,113.43519637]
[1641100456495,9.2697,176.31,176.3,105.00159637]
[1641100457197,10.69639368,176.31,176.3,89.32629637]
[1641100457396,12.30215714,176.31,176.3,89.32629637]
[1641100459299,10.87546346,176.31,176.3,89.32629637]
[1641100459499,10.61546346,176.31,176.3,89.32629637]
[1641100461100,9.2697,176.31,176.3,89.32629637]
[1641100461303,9.0097,176.31,176.3,89.32629637]
[1641100462502,9.2697,176.31,176.3,89.32629637]
[1641100467811,9.0097,176.31,176.3,89.32629637]
[1641100469631,8.5097,176.31,176.3,62.69208537]
[1641100469835,9.2697,176.31,176.3,62.69208537]
[1641100470933,8.5097,176.31,176.3,62.69208537]
[1641100471933,5.46253446,176.32,176.3,62.69208537]
[1641100472132,5.46253446,176.32,176.3,63.29395085]
[1641100472532,5.46253446,176.32,176.3,62.69208537]
[1641100472932,13.97133446,176.32,176.3,62.69208537]
[1641100473334,14.47133446,176.32,176.3,62.69208537]
[1641100473533,13.97133446,176.32,176.3,62.69208537]
[1641100473734,14.47133446,176.32,176.3,62.69208537]
[1641100474139,13.97133446,176.32,176.3,62.69208537]
[1641100482759,13.97133446,176.32,176.3,63.29395085]
[1641100483968,8.5088,176.32,176.3,63.29395085]
[1641100486072,8.5088,176.32,176.07,97.9]
[1641100486073,10.81735573,176.21,176.15,36.61206059]
[1641100486275,7.31312248,176.21,176.15,8.24126059]
[1641100486472,16.32732248,176.21,176.14,75.4673]
[1641100486673,9.2742,176.21,176.14,75.4673]
[1641100486873,1.42669368,176.2,176.09,1.2407]
[1641100487073,0.44149076,176.14,176.04,26.27688996]
[1641100487274,6.63949076,176.14,176.04,26.27688996]
[1641100487474,6.89949076,176.14,176.02,421.82422744]
[1641100487681,15.91729076,176.14,176.02,421.82422744]
[1641100488074,8.18,176.13,176.03,22.97443305]
[1641100488495,8.94,176.13,176.03,22.97443305]
[1641100488700,8.44,176.13,176.03,22.97443305]
[1641100488905,16.9587,176.13,176.03,22.97443305]
[1641100489299,16.9587,176.13,176.03,31.49283305]
[1641100489499,8.44,176.13,176.03,31.49283305]
[1641100489999,8.44,176.13,176.03,31.75283305]
[1641100490204,8.44,176.13,176.03,32.25283305]
[1641100490600,16.9586,176.13,176.03,32.25283305]
[1641100490998,17.4586,176.13,176.03,32.25283305]
[1641100491812,17.4586,176.13,176.03,23.73443305]
[1641100492002,17.4586,176.13,176.01,81.1429]
[1641100492202,22.5606,176.13,176.01,8.5192]
[1641100492404,22.5606,176.13,176.0,75.7674]
[1641100493106,22.5606,176.13,176.0,101.57679987]
[1641100493305,17.4586,176.13,175.98,75.9081]
[1641100493504,17.4586,176.13,175.98,76.4081]
[1641100494305,17.4586,176.13,175.98,108.3379999]
[1641100494504,20.3990488,176.13,175.98,108.5979999]
[1641100494705,20.3990488,176.13,175.98,108.3379999]
[1641100496508,20.3990488,176.13,175.98,76.4081]
[1641100496707,1.51375512,176.12,175.98,76.4081]
[1641100496906,8.5227,176.05,175.98,76.4081]
[1641100497108,8.7827,176.05,175.98,0.5]
[1641100497506,8.7827,176.05,175.95,31.27535322]
[1641100497708,8.7827,176.05,175.95,30.77535322]
[1641100497911,8.7827,176.05,175.95,31.27535322]
[1641100498110,8.7827,176.05,175.95,31.53535322]
[1641100499411,8.7827,176.05,175.95,40.05765322]
[1641100500412,14.5187,176.05,175.95,0.5]
[1641100500611,15.94539368,176.05,175.92,81.0747]
[1641100500810,16.44539368,176.05,175.93,0.5]
[1641100501411,16.44539368,176.05,175.92,0.5]
[1641100501412,24.62539368,176.05,175.92,0.5]
[1641100501814,24.62539368,176.05,175.91,25.01286708]
[1641100502015,18.88939368,176.05,175.91,25.01286708]
[1641100502211,17.4627,176.05,175.91,25.01286708]
[1641100502812,17.4627,176.05,175.91,25.27286708]
[1641100503614,17.4627,176.05,175.91,33.79696708]
[1641100503913,17.2027,176.05,175.91,33.79696708]
[1641100505315,17.4627,176.05,175.91,33.79696708]
[1641100507618,17.4627,176.05,175.91,24.77286708]
[1641100510028,18.88939368,176.05,175.91,24.77286708]
[1641100511026,20.4031488,176.05,175.91,24.77286708]
[1641100511427,18.97645512,176.05,175.91,24.77286708]
[1641100511926,18.97645512,176.05,175.91,25.27286708]
[1641100512126,17.4627,176.05,175.91,25.27286708]
[1641100512526,17.4627,176.05,175.91,24.77286708]
[1641100513326,18.97645512,176.05,175.91,24.77286708]
[1641100514751,18.97645512,176.05,175.91,33.29726708]
[1641100514950,17.4627,176.05,175.91,33.29726708]
[1641100515353,17.2027,176.05,175.91,33.29726708]
[1641100515550,16.7027,176.05,175.91,33.79726708]
[1641100516852,17.4627,176.05,175.91,33.79726708]
[1641100517453,8.5227,176.05,175.92,8.18]
[1641100517754,10.03545512,176.07,175.96,8.5219]
[1641100517952,9.0217,176.07,175.92,8.18]
[1641100518152,9.0217,176.07,175.96,0.26]
[1641100518353,17.2017,176.07,175.96,0.26]
[1641100518552,17.2017,176.07,175.92,0.5]
[1641100518956,17.4617,176.07,175.91,25.01286708]
[1641100519357,17.4617,176.07,175.94,8.5231]
[1641100520357,17.4617,176.07,175.94,8.7831]
[1641100521159,17.4617,176.07,175.94,9.2831]
[1641100521365,17.4617,176.07,175.94,8.7831]
[1641100521559,17.4617,176.07,175.94,9.2831]
[1641100528871,17.2017,176.07,175.94,9.2831]
[1641100529070,16.7017,176.07,175.94,9.2831]
[1641100529276,8.5217,176.07,175.95,8.18]
[1641100529475,8.5217,176.07,175.98,8.5213]
[1641100529674,8.5217,176.07,175.99,25.5648408]
[1641100530076,8.5217,176.07,175.99,25.8248408]
[1641100531583,8.5217,176.07,175.99,34.3457408]
[1641100536207,28.4003,176.13,175.99,43.0257408]
[1641100536407,74.06704588,176.14,175.99,43.0257408]
[1641100537007,74.06704588,176.14,176.0,1.272]
[1641100537208,8.5194,176.1,176.02,8.5194]
[1641100537411,8.5194,176.1,176.02,9.0194]
[1641100537611,8.5194,176.1,176.02,9.2794]
[1641100538009,1.95524588,176.14,176.02,17.4594]
[1641100538209,1.95524588,176.14,176.02,23.9374]
[1641100538613,0.44149076,176.14,176.02,23.9374]
[1641100538810,8.95939076,176.14,176.02,23.9374]
[1641100539308,8.95939076,176.14,176.02,17.4594]
[1641100546721,9.45939076,176.14,176.02,17.4594]
[1641100546919,8.95939076,176.14,176.02,17.4594]
[1641100548625,8.95939076,176.14,176.02,17.1994]
[1641100548825,9.71939076,176.14,176.02,17.1994]
[1641100549025,11.14608444,176.14,176.02,16.6994]
[1641100549225,10.64608444,176.14,176.02,16.6994]
[1641100549423,9.71939076,176.14,176.02,16.6994]
[1641100549725,8.5191,176.11,176.02,16.6994]
[1641100549923,8.5191,176.11,176.02,17.1994]
[1641100550123,8.7791,176.11,176.02,17.1994]
[1641100550323,8.7791,176.11,176.02,16.9594]
[1641100551230,8.5191,176.11,176.02,16.9594]
[1641100552430,8.5184,176.12,176.02,17.4594]
[1641100552626,3.26844588,176.14,176.02,17.4594]
[1641100552828,1.95524588,176.14,176.02,17.4594]
[1641100553428,0.44149076,176.14,176.02,17.4594]
[1641100553628,8.95929076,176.14,176.02,17.4594]
[1641100554635,9.45929076,176.14,176.02,17.4594]
[1641100555633,9.71929076,176.14,176.02,17.4594]
[1641100557140,11.23304588,176.14,176.02,18.6985]
[1641100557538,9.45929076,176.14,176.02,18.6985]
[1641100560540,8.95929076,176.14,176.02,18.6985]
[1641100561543,0.44149076,176.14,176.02,18.6985]
[1641100563350,0.44149076,176.14,176.02,18.4385]
[1641100563351,8.95899076,176.14,176.02,18.4385]
[1641100563545,9.21899076,176.14,176.02,18.4385]
[1641100563845,9.71899076,176.14,176.02,17.9385]
[1641100564244,11.23274588,176.14,176.02,9.7585]
[1641100565244,1.51375512,176.13,176.02,9.7585]
[1641100565447,2.01375512,176.13,176.02,8.5194]
[1641100565648,16.37875512,176.13,175.99,25.5648408]
[1641100565845,17.8054488,176.13,175.99,26.0648408]
[1641100566046,17.8054488,176.13,175.99,34.5858408]
[1641100566448,8.5215,176.06,175.99,26.0648408]
[1641100566646,8.5215,176.06,175.99,25.5648408]
[1641100566845,9.0215,176.06,175.99,25.5648408]
[1641100567348,9.0215,176.06,175.96,75.9753]
[1641100567645,9.0215,176.06,175.98,8.5218]
[1641100567845,9.2815,176.06,175.98,8.5218]
[1641100568847,9.2815,176.06,175.98,8.7818]
[1641100569047,1.3127,176.09,175.98,8.7818]
[1641100569246,9.8327,176.09,175.98,24.3698]
[1641100569446,73.975,176.1,175.98,24.8698]
[1641100570048,73.975,176.1,175.98,17.4618]
[1641100570449,74.735,176.1,175.98,16.9618]
[1641100570949,76.24875512,176.1,175.98,16.9618]
[1641100571350,76.24875512,176.1,175.98,16.7018]
[1641100571750,86.1949488,176.1,175.98,16.7018]
[1641100572148,86.1949488,176.1,175.98,8.18]
[1641100572648,84.76825512,176.1,175.98,8.18]
[1641100573052,84.50825512,176.1,175.98,8.44]
[1641100573253,1.51375512,176.09,175.98,16.962]
[1641100573454,8.522,176.05,175.98,16.962]
[1641100573650,28.9071,176.09,175.98,8.44]
[1641100574250,30.42085512,176.09,175.98,8.44]
[1641100574449,30.68085512,176.09,175.98,8.44]
[1641100574679,8.5226,176.04,175.98,8.44]
[1641100575077,8.5226,176.04,175.98,0.26]
[1641100575279,8.5226,176.04,175.97,9.2824]
[1641100576481,8.5219,176.06,175.97,9.2824]
[1641100576880,9.0219,176.06,175.97,9.2824]
[1641100578585,9.2819,176.06,175.97,0.5]
[1641100579084,9.2819,176.06,175.94,8.18]
[1641100579283,9.2819,176.06,175.94,9.4054]
[1641100579484,9.2819,176.06,175.94,9.9054]
[1641100579685,9.2819,176.06,175.97,8.5221]
[1641100579884,9.2819,176.06,175.97,9.0221]
[1641100580086,9.2819,176.06,175.97,9.2821]
[1641100581783,9.0219,176.06,175.97,9.2821]
[1641100582384,9.0219,176.06,175.97,0.76]
[1641100582586,9.0219,176.06,175.97,0.5]
[1641100582786,9.0219,176.06,175.94,0.76]
[1641100582984,9.2819,176.06,175.94,0.76]
[1641100583184,9.2819,176.06,175.94,2.0138]
[1641100583685,9.0219,176.06,175.94,2.0138]
[1641100584485,9.2819,176.06,175.94,2.0138]
[1641100584686,9.2819,176.06,175.97,8.5224]
[1641100584887,9.2819,176.06,175.97,9.0224]
[1641100585086,9.2819,176.06,175.97,9.2824]
[1641100585485,9.2819,176.06,175.97,0.76]
[1641100585884,9.2819,176.06,175.95,9.0231]
[1641100586086,9.2819,176.06,175.95,9.2831]
[1641100586288,10.79565512,176.06,175.95,9.2831]
[1641100587189,9.2819,176.06,175.95,9.2831]
[1641100588594,9.2819,176.06,175.95,17.4631]
[1641100593197,9.2819,176.06,175.95,9.2831]
[1641100593996,9.2819,176.06,175.95,9.0231]
[1641100595396,9.2819,176.06,175.95,9.2831]
[1641100598114,9.2819,176.06,175.95,10.5102]
[1641100600412,9.0219,176.06,175.95,10.5102]
[1641100600837,8.5219,176.06,175.95,10.5102]
[1641100601239,2.78465512,176.07,175.95,10.5102]
[1641100601531,1.51375512,176.07,176.01,8.52]
[1641100601947,1.51375512,176.07,176.01,8.78]
[1641100602232,8.5208,176.08,176.01,8.78]
[1641100603131,8.5208,176.08,176.01,8.52]
[1641100603334,8.7808,176.08,176.01,8.52]
[1641100603534,8.5208,176.08,176.01,8.52]
[1641100603733,8.7808,176.08,176.01,8.52]
[1641100604333,9.2808,176.08,176.01,8.52]
[1641100604533,9.2808,176.08,175.97,1.3264]
[1641100604534,9.2808,176.08,175.99,8.5214]
[1641100605335,9.2808,176.08,175.99,8.7814]
[1641100605736,10.79455512,176.08,175.99,8.7814]
[1641100606236,9.2808,176.08,175.99,8.7814]
[1641100607339,10.79455512,176.08,175.99,8.7814]
[1641100607740,10.79455512,176.08,175.94,8.18]
[1641100607939,17.4012488,176.08,175.94,8.18]
[1641100608139,25.5812488,176.08,175.94,8.18]
[1641100608339,1.51375512,176.07,175.94,8.18]
[1641100608545,8.5237,176.01,175.94,8.18]
[1641100608742,83.7317488,176.07,175.94,16.7039]
[1641100608940,1.51375512,176.05,175.94,17.2039]
[1641100609341,2.27375512,176.05,175.94,17.4639]
[1641100609740,8.5231,176.03,175.94,17.4639]
[1641100609939,9.0231,176.03,175.94,17.4639]
[1641100610141,9.2831,176.03,175.94,17.4639]
[1641100613946,8.5231,176.03,175.94,17.4639]
[1641100614146,9.781,176.04,175.94,16.9639]
[1641100614346,9.781,176.04,175.94,17.4639]
[1641100615249,9.781,176.04,175.94,18.7766]
[1641100619150,9.781,176.04,175.94,18.5166]
[1641100619951,8.5223,176.04,175.94,18.5166]
[1641100620352,8.7823,176.04,175.94,18.5166]
[1641100620551,8.5223,176.04,175.94,18.7766]
[1641100627755,1.3178,176.05,175.94,18.7766]
[1641100628156,1.51375512,176.07,175.94,18.7766]
[1641100628355,1.51375512,176.07,175.94,20.20329368]
[1641100629259,73.975,176.1,175.94,20.20329368]
[1641100629457,1.51375512,176.11,175.94,20.20329368]
[1641100629859,10.29295512,176.11,175.94,20.20329368]
[1641100630259,10.03295512,176.11,175.94,20.20329368]
[1641100630867,11.28435512,176.11,175.94,20.20329368]
[1641100631262,10.03295512,176.11,175.94,19.94329368]
[1641100631660,10.53295512,176.11,175.94,19.94329368]
[1641100632560,10.79295512,176.11,175.94,20.20329368]
[1641100633163,10.29295512,176.11,175.94,20.20329368]
[1641100633562,8.7792,176.11,175.94,20.20329368]
[1641100634264,9.2792,176.11,175.94,20.20329368]
[1641100635066,10.5991,176.11,175.94,20.20329368]
[1641100635466,11.61285512,176.11,175.94,20.20329368]
[1641100635664,11.35285512,176.11,175.94,20.20329368]
[1641100635864,12.11285512,176.11,175.94,20.20329368]
[1641100637967,11.85285512,176.11,175.94,20.20329368]
[1641100638167,12.11285512,176.11,175.94,20.20329368]
[1641100638567,11.35285512,176.11,175.94,20.20329368]
[1641100638767,11.85285512,176.11,175.94,20.20329368]
[1641100639370,10.3391,176.11,175.94,20.20329368]
[1641100641171,9.8391,176.11,175.94,20.20329368]
[1641100641372,10.3391,176.11,175.94,20.20329368]
[1641100641571,9.8391,176.11,175.94,20.20329368]
[1641100641771,10.3391,176.11,175.94,20.20329368]
[1641100645396,11.85285512,176.11,175.94,20.20329368]
[1641100649905,10.3391,176.11,175.94,20.20329368]
[1641100650904,9.3391,176.11,175.94,19.94329368]
[1641100651107,9.8391,176.11,175.94,19.94329368]
[1641100652106,9.8391,176.11,175.94,20.20329368]
[1641100653908,9.3391,176.11,175.94,20.20329368]
[1641100654307,9.8391,176.11,175.94,20.20329368]
[1641100655810,1.3199,176.11,175.94,20.20329368]
[1641100661722,1.3199,176.11,175.94,122.51329368]
[1641100663124,1.3199,176.11,175.94,128.17729368]
[1641100664628,1.3199,176.11,175.94,122.51329368]
[1641100668033,1.3199,176.11,175.97,102.31]
[1641100668232,1.3199,176.11,175.98,8.18]
[1641100668446,1.3199,176.11,176.05,25.98357788]
[1641100668648,1.51375512,176.13,176.05,25.98357788]
[1641100668847,1.51375512,176.13,176.05,26.24357788]
[1641100669045,157.34154588,176.14,176.05,26.24357788]
[1641100669447,157.34154588,176.14,176.05,27.47637788]
[1641100669647,157.34154588,176.14,176.09,8.5169]
[1641100669845,79.66354588,176.14,176.09,8.5169]
[1641100670046,1.95524588,176.14,176.09,8.7769]
[1641100672950,0.44149076,176.14,176.09,8.7769]
[1641100682962,0.44149076,176.14,176.08,8.5175]
[1641100684264,8.95899076,176.14,176.04,8.18]
[1641100684563,11.23274588,176.14,176.04,8.68]
[1641100685064,1.51375512,176.11,176.04,8.18]
[1641100685265,1.51375512,176.11,176.06,8.5185]
[1641100685463,1.51375512,176.11,176.06,9.0185]
[1641100686066,1.51375512,176.11,176.06,0.5]
[1641100686265,1.51375512,176.11,176.04,8.68]
[1641100686966,1.51375512,176.11,176.04,8.94]
[1641100687666,10.03265512,176.11,176.05,8.519]
[1641100687867,10.03265512,176.11,176.05,9.019]
[1641100688067,10.03265512,176.11,176.05,9.279]
[1641100690172,8.5189,176.11,176.05,9.279]
[1641100690572,10.03265512,176.11,176.05,9.279]
[1641100696404,1.51375512,176.11,176.05,9.279]
[1641100696806,8.5184,176.12,176.05,9.279]
[1641100696807,10.03215512,176.12,176.05,9.279]
[1641100697003,10.29215512,176.12,176.05,9.279]
[1641100697906,1.51375512,176.12,176.06,21.23426577]
[1641100698105,1.51375512,176.12,176.09,8.517]
[1641100698305,1.51375512,176.12,176.1,0.5]
[1641100699110,0.44149076,176.14,176.1,0.5]
[1641100699308,0.44149076,176.14,176.12,8.5153]
[1641100699508,0.44149076,176.14,176.12,8.7753]
[1641100699705,0.44149076,176.14,176.12,9.2753]
[1641100699906,0.44149076,176.14,176.13,0.5]
[1641100701705,0.44149076,176.14,176.13,9.0151]
[1641100702105,0.44149076,176.14,176.13,9.2751]
[1641100714020,0.44149076,176.14,176.13,9.7751]
[1641100715321,0.44149076,176.14,176.13,34.61311142]
[1641100719326,1.51375512,176.19,176.14,56.0]
[1641100719524,1.51375512,176.19,176.15,8.18]
[1641100719725,1.51375512,176.19,176.16,8.5115]
[1641100719926,4.83717236,176.26,176.16,17.1915]
[1641100720126,4.83717236,176.26,176.16,17.4515]
[1641100720325,4.83717236,176.26,176.17,30.02489235]
[1641100720529,4.83717236,176.26,176.18,8.18]
[1641100720727,8.06154503,176.26,176.18,8.18]
[1641100720956,8.06154503,176.26,176.22,8.5098]
[1641100721355,4.83717236,176.26,176.22,9.2698]
[1641100725262,4.83717236,176.26,176.22,9.0098]
[1641100725860,4.83717236,176.26,176.22,8.5098]
[1641100726562,4.83717236,176.26,176.22,8.7698]
[1641100726761,4.83717236,176.26,176.22,9.2698]
[1641100737176,4.83717236,176.26,176.22,17.4498]
[1641100737374,4.33717236,176.26,176.22,17.4498]
[1641100737574,4.33717236,176.26,176.23,21.04151301]
[1641100737775,4.33717236,176.26,176.24,9.0081]
[1641100738076,4.33717236,176.26,176.24,9.2681]
[1641100738674,4.33717236,176.26,176.24,9.7681]
[1641100740478,4.33717236,176.26,176.24,17.9481]
[1641100740679,3.22437267,176.34,176.24,17.9481]
[1641100740877,3.22437267,176.34,176.29,8.5067]
[1641100741081,3.22437267,176.34,176.29,8.7667]
[1641100741880,6.45037289,176.34,176.29,8.7667]
[1641100744781,6.45037289,176.34,176.29,8.5067]
[1641100744981,1.42669368,176.33,176.27,8.5079]
[1641100745183,1.42669368,176.33,176.22,8.18]
[1641100745381,2.18669368,176.33,176.22,8.68]
[1641100746081,3.45929368,176.33,176.22,8.18]
[1641100746283,6.45037289,176.32,176.23,8.5099]
[1641100746484,6.45037289,176.32,176.23,9.2699]
[1641100747116,1.2726,176.33,176.23,9.2699]
[1641100747307,1.2726,176.33,176.24,1.2991]
[1641100747507,1.2726,176.33,176.28,8.5075]
[1641100747711,3.22437267,176.35,176.28,8.5075]
[1641100747910,3.22437267,176.35,176.28,8.7675]
[1641100748109,3.22437267,176.35,176.29,30.23653367]
[1641100748311,4.49717267,176.36,176.29,30.23653367]
[1641100748509,4.49717267,176.36,176.29,8.7672]
[1641100748910,4.99717267,176.36,176.29,0.26]
[1641100749111,1.7728,176.36,176.24,28.3582]
[1641100749308,3.19949368,176.36,176.24,0.5]
[1641100749508,3.19949368,176.36,176.24,30.9019051]
[1641100749711,11.70709368,176.36,176.27,8.5081]
[1641100749910,11.20709368,176.36,176.27,8.5081]
[1641100750110,11.46709368,176.36,176.27,8.5081]
[1641100750413,11.96709368,176.36,176.27,8.5081]
[1641100750613,11.96709368,176.36,176.27,8.7681]
[1641100752612,11.46709368,176.36,176.28,33.50927262]
[1641100753017,2.69949368,176.36,176.28,33.76927262]
[1641100754714,2.69949368,176.36,176.28,8.7676]
[1641100754919,3.45949368,176.36,176.28,8.7676]
[1641100755918,6.68386635,176.36,176.28,8.7676]
[1641100756720,15.19156635,176.36,176.28,8.7676]
[1641100756921,14.69156635,176.36,176.28,8.7676]
[1641100757122,6.18386635,176.36,176.29,28.00687906]
[1641100757320,2.95949368,176.36,176.29,36.51397906]
[1641100757520,2.95949368,176.36,176.29,36.77397906]
[1641100758022,2.95949368,176.36,176.29,8.7671]
[1641100758220,11.96709368,176.36,176.29,0.26]
[1641100758521,11.96709368,176.36,176.25,1.5677]
[1641100758925,11.96709368,176.36,176.25,24.76356264]
[1641100759320,11.46709368,176.36,176.25,24.76356264]
[1641100759522,11.46709368,176.36,176.28,8.5073]
[1641100759724,2.95949368,176.36,176.25,24.76356264]
[1641100760723,1.5328,176.36,176.25,24.76356264]
[1641100761724,1.5328,176.36,176.29,8.5071]
[1641100762125,1.5328,176.36,176.29,8.7671]
[1641100767330,1.5328,176.36,176.29,8.5071]
[1641100767530,10.5404,176.36,176.29,8.5071]
[1641100768335,10.0404,176.36,176.29,8.5071]
[1641100768732,10.0404,176.36,176.29,8.7671]
[1641100768932,9.7804,176.36,176.29,8.7671]
[1641100769135,1.2728,176.36,176.29,8.7671]
[1641100770434,1.2728,176.36,176.29,13.5171]
[1641100770837,3.22437267,176.38,176.29,14.0171]
[1641100771240,0.5,176.38,176.29,14.0171]
[1641100771835,8.22628918,176.39,176.29,14.0171]
[1641100772035,8.22628918,176.39,176.3,1.256]
[1641100772337,10.2835,176.39,176.32,8.5055]
[1641100772634,10.2835,176.39,176.32,8.7655]
[1641100773365,1.7773,176.39,176.32,8.7655]
[1641100773966,10.2834,176.39,176.32,8.7655]
[1641100774167,10.2834,176.39,176.32,0.26]
[1641100774367,10.5434,176.39,176.32,0.26]
[1641100774567,10.5434,176.39,176.31,8.7664]
[1641100774768,10.5434,176.39,176.31,0.26]
[1641100774966,10.5434,176.39,176.3,0.26]
[1641100775166,10.5434,176.39,176.28,76.3063]
[1641100775368,10.5434,176.39,176.28,76.8063]
[1641100775569,10.5434,176.39,176.3,8.5068]
[1641100775973,10.5434,176.39,176.3,8.7668]
[1641100778478,10.2834,176.39,176.31,26.99328333]
[1641100778677,10.2834,176.39,176.31,35.49958333]
[1641100778874,10.2834,176.39,176.31,35.75958333]
[1641100779576,10.2834,176.39,176.31,8.7663]
[1641100779975,9.67352739,176.38,176.31,8.7663]
[1641100780378,10.17352739,176.38,176.31,8.7663]
[1641100780575,0.5,176.38,176.31,8.7663]
[1641100780980,13.50777267,176.39,176.31,8.7663]
[1641100782483,13.76777267,176.39,176.28,76.0463]
[1641100782682,15.19446635,176.39,176.28,76.0463]
[1641100783185,8.5071,176.37,176.28,76.0463]
[1641100783386,9.0071,176.37,176.28,76.0463]
[1641100783783,9.2671,176.37,176.28,76.3063]
[1641100784384,12.49147267,176.37,176.28,76.3063]
[1641100784612,12.49147267,176.37,176.28,8.7675]
[1641100785812,12.23147267,176.37,176.28,8.7675]
[1641100786013,3.72437267,176.37,176.28,8.7675]
[1641100786216,3.72437267,176.37,176.28,9.2675]
[1641100786613,0.5,176.37,176.28,9.2675]
[1641100786913,0.5,176.38,176.28,8.7675]
[1641100787113,0.76,176.38,176.28,8.7675]
[1641100787314,0.26,176.38,176.28,9.2675]
[1641100787614,3.98437267,176.39,176.28,9.2675]
[1641100787914,8.5071,176.37,176.3,8.5065]
[1641100788116,8.5071,176.37,176.3,8.7665]
[1641100788314,9.0071,176.37,176.3,8.7665]
[1641100789716,9.2671,176.37,176.3,8.7665]
[1641100789915,9.0071,176.37,176.3,8.7665]
[1641100790118,0.5,176.37,176.3,8.7665]
[1641100790518,1.809,176.38,176.3,8.7665]
[1641100790815,1.309,176.38,176.3,8.7665]
[1641100791018,1.809,176.38,176.3,8.7665]
[1641100791416,2.069,176.38,176.3,8.7665]
[1641100791617,10.5755,176.38,176.3,8.7665]
[1641100797124,1.809,176.38,176.3,8.7665]
[1641100797525,1.809,176.38,176.3,36.58552399]
[1641100797927,0.5,176.38,176.3,37.08552399]
[1641100798326,12.23017267,176.4,176.3,37.08552399]
[1641100798827,9.0058,176.4,176.3,37.08552399]
[1641100799026,9.0058,176.4,176.33,8.5054]
[1641100799429,9.0058,176.4,176.33,0.26]
[1641100800026,10.43249368,176.4,176.31,1.511]
[1641100800226,9.0058,176.4,176.32,8.5056]
[1641100800728,12.23017267,176.4,176.32,8.7656]
[1641100802932,3.72437267,176.4,176.32,8.7656]
[1641100804132,0.5,176.4,176.32,8.7656]
[1641100804531,13.43777267,176.41,176.32,8.7656]
[1641100805331,13.43777267,176.41,176.33,9.7459]
[1641100805532,13.43777267,176.41,176.33,10.0059]
[1641100805733,13.43777267,176.41,176.33,9.7459]
[1641100806133,13.69777267,176.41,176.33,9.7459]
[1641100806736,13.69777267,176.41,176.34,36.08955373]
[1641100806935,13.43777267,176.41,176.34,36.08955373]
[1641100807135,13.43777267,176.41,176.34,36.34955373]
[1641100807335,13.43777267,176.41,176.34,8.765]
[1641100807537,10.2134,176.41,176.34,8.765]
[1641100807737,9.0049,176.41,176.34,8.765]
[1641100808037,152.8916,176.42,176.34,8.765]
[1641100808836,152.8916,176.42,176.34,8.505]
[1641100809042,161.656,176.42,176.3,8.68]
[1641100809238,1.42669368,176.41,176.3,1.7719]
[1641100809440,11.59903296,176.41,176.3,1.7719]
[1641100809638,11.85903296,176.41,176.3,1.7719]
[1641100809938,1.2409,176.4,176.3,31.29063332]
[1641100810337,11.67323928,176.4,176.3,31.55063332]
[1641100810740,8.5062,176.39,176.32,8.5058]
[1641100810967,15.71416661,176.39,176.32,8.5058]
[1641100811376,15.71416661,176.39,176.32,8.7658]
[1641100811767,12.49057267,176.39,176.32,8.7658]
[1641100812268,12.49057267,176.39,176.32,0.26]
[1641100812470,3.98437267,176.39,176.31,8.506]
[1641100812668,3.48437267,176.39,176.31,8.506]
[1641100812868,3.48437267,176.39,176.31,8.766]
[1641100813569,0.26,176.39,176.31,8.766]
[1641100813769,1.5009,176.4,176.31,8.766]
[1641100813971,1.2409,176.4,176.31,8.766]
[1641100814374,11.73017267,176.41,176.31,8.766]
[1641100814572,12.23017267,176.41,176.31,8.766]
[1641100814974,3.72437267,176.41,176.33,8.5049]